bitfinex-derivatives/quotes_ETHF0:USTF0_20251103
["timestamp","ask_amount","ask_price","bid_price","bid_amount"]
[1762159933007,3.2078,3713.4,3712.9,3.2078]
[1762159933508,3.2078,3713.4,3712.5,0.96020185]
[1762159935207,3.2078,3713.4,3712.6,0.96020185]
[1762159935507,0.8561,3713.5,3713.0,3.2078]
[1762159936711,4.0639,3713.5,3713.0,3.2078]
[1762159938014,4.0639,3713.5,3713.0,4.16800185]
[1762159938214,0.8561,3713.5,3713.0,4.16800185]
[1762159938611,0.8561,3713.5,3713.1,0.96020185]
[1762159938810,0.8561,3713.5,3713.0,4.16800185]
[1762159939008,0.0028153,3713.6,3713.1,0.96020185]
[1762159939317,2.697,3715.5,3712.6,0.311]
[1762159939318,3.2078,3714.6,3714.0,1.3707]
[1762159939611,3.2078,3714.6,3714.0,2.33389525]
[1762159939812,3.2078,3714.6,3714.1,0.96319525]
[1762159940010,3.2078,3714.6,3713.8,3.2078]
[1762159940411,3.20990207,3714.6,3713.8,3.2078]
[1762159941010,3.20990207,3714.6,3713.8,4.17099525]
[1762159941211,3.20990207,3714.6,3714.1,0.96319525]
[1762159942113,0.00210207,3714.6,3714.2,3.2078]
[1762159942618,0.00210207,3714.6,3714.2,4.17099525]
[1762159943212,0.00210207,3714.6,3714.3,0.96319525]
[1762159943513,0.00210207,3714.6,3714.4,0.96319525]
[1762159943713,0.00210207,3714.6,3714.5,1.3707]
[1762159944619,0.00210207,3714.6,3714.3,1.44106528]
[1762159945215,1.36970207,3714.6,3714.5,0.96318417]
[1762159945416,1.3676,3714.5,3714.4,0.96318417]
[1762159945608,1.3676,3714.5,3714.3,0.96318417]
[1762159945810,1.3676,3714.3,3714.2,4.17098417]
[1762159946010,0.00210207,3714.6,3714.2,3.2078]
[1762159946413,2.0127,3714.2,3714.1,0.96318417]
[1762159946613,0.7445,3714.2,3713.9,0.96318417]
[1762159946810,0.00210207,3714.6,3714.0,0.96318417]
[1762159947009,0.00210207,3714.6,3714.2,0.96318417]
[1762159947315,0.00210207,3714.6,3714.3,0.96318417]
[1762159948215,1.2682,3714.4,3714.3,0.96318417]
[1762159948616,0.9397,3714.4,3714.3,0.96318417]
[1762159948812,1.2682,3714.3,3714.2,0.96318417]
[1762159949008,0.00210207,3714.6,3714.1,0.96318417]
[1762159949208,2.0127,3714.2,3714.1,0.96318417]
[1762159951016,0.00210207,3714.6,3713.9,1.44106528]
[1762159951318,0.00210207,3714.6,3714.3,0.9649007]
[1762159951716,0.00210207,3714.6,3714.3,4.1727007]
[1762159951912,0.00210207,3714.6,3714.3,0.9649007]
[1762159952114,0.00210207,3714.6,3714.4,4.1727007]
[1762159952316,0.00210207,3714.6,3714.5,1.2879]
[1762159952921,0.00210207,3714.6,3714.4,3.2078]
[1762159953622,0.00210207,3714.6,3714.4,4.65529808]
[1762159953924,1.2682,3714.5,3714.4,3.2078]
[1762159954611,0.74660207,3714.6,3714.5,1.2879]
[1762159954612,0.00210207,3714.6,3714.5,1.2879]
[1762159955021,1.41057263,3716.8,3715.2,1.2879]
[1762159955225,2.15507263,3717.6,3716.7,3.2078]
[1762159955413,0.7445,3717.6,3717.0,0.96476196]
[1762159956221,1.2682,3717.1,3717.0,0.00226321]
[1762159957424,3.2078,3717.5,3717.0,0.00226321]
[1762159957821,1.2682,3717.1,3717.0,0.00226321]
[1762159958626,0.7445,3717.0,3716.1,3.2078]
[1762159958822,1.2682,3716.2,3716.1,3.2078]
[1762159959219,1.2682,3716.2,3715.5,4.17256196]
[1762159959523,0.7445,3716.3,3715.5,4.17485671]
[1762159959923,3.2078,3716.9,3715.7,3.2078]
[1762159961228,3.2078,3716.9,3716.1,3.2078]
[1762159961724,0.7445,3717.0,3716.1,3.2078]
[1762159962126,0.7445,3717.0,3716.5,3.2078]
[1762159962322,3.2078,3717.3,3716.5,3.2078]
[1762159962828,3.2078,3717.3,3716.9,0.3285]
[1762159963228,2.0222,3717.0,3716.9,0.3285]
[1762159964029,2.0222,3717.0,3716.1,3.2078]
[1762159964030,0.7612,3716.3,3716.1,3.2078]
[1762159964229,0.7612,3717.0,3716.1,3.2078]
[1762159965125,3.2078,3717.1,3716.5,3.2078]
[1762159965933,0.7612,3717.0,3716.5,3.2078]
[1762159966531,0.7612,3717.0,3716.0,3.2078]
[1762159967039,3.2078,3716.7,3716.0,3.2078]
[1762159967630,1.261,3716.1,3716.0,3.2078]
[1762159968232,1.261,3716.1,3715.5,3.21009475]
[1762159969834,0.7612,3716.3,3715.5,3.21009475]
[1762159970334,0.7612,3716.3,3715.9,3.2078]
[1762159972534,0.7612,3716.3,3715.5,3.21009475]
[1762159973540,0.7612,3716.3,3716.0,3.2078]
[1762159973740,0.7612,3716.3,3715.6,4.17256196]
[1762159974238,0.7612,3716.3,3716.0,0.72135445]
[1762159974941,0.7612,3716.3,3715.9,0.72135445]
[1762159975240,13.6688,3716.7,3716.0,0.72135445]
[1762159976139,13.6568,3716.7,3715.9,0.72135445]
[1762159976937,13.6498,3716.7,3716.0,0.72135445]
[1762159977541,3.2078,3716.7,3716.0,0.72135445]
[1762159977844,3.2078,3716.7,3716.1,0.72135445]
[1762159978945,1.261,3716.2,3716.1,0.72135445]
[1762159980146,1.261,3716.1,3715.8,0.96476196]
[1762159980350,1.261,3716.1,3716.0,0.72270024]
[1762159980646,1.261,3716.1,3715.8,0.96476196]
[1762159981243,2.0222,3715.8,3715.7,0.96476196]
[1762159982247,2.0222,3715.8,3715.6,3.2078]
[1762159982836,2.0222,3715.8,3715.6,4.17260535]
[1762159983535,13.6108,3716.3,3715.7,1.2949]
[1762159983741,3.2078,3716.7,3716.2,1.2949]
[1762159983943,0.7612,3717.0,3716.6,0.7238585]
[1762159984136,0.7612,3717.0,3716.9,0.96480535]
[1762159985148,0.7612,3717.0,3716.7,1.44749808]
[1762159985445,3.21021682,3717.6,3717.5,1.2949]
[1762159985646,3.21021682,3717.6,3717.5,0.96571537]
[1762159985846,3.97141682,3717.6,3717.5,0.96571537]
[1762159986547,5.23241682,3717.6,3717.4,0.96571537]
[1762159986843,1.261,3717.5,3717.2,1.44857306]
[1762159987237,1.261,3717.5,3717.4,0.96540355]
[1762159987638,0.00241682,3717.6,3717.5,1.2949]
[1762159987946,0.00241682,3717.6,3717.5,2.26030355]
[1762159988142,0.00241682,3717.6,3717.5,0.96540355]
[1762159988345,0.00241682,3717.6,3717.4,0.96540355]
[1762159988640,3.2078,3718.1,3717.6,0.09758318]
[1762159988848,1.261,3717.8,3717.7,0.72285421]
[1762159989241,1.261,3717.8,3717.6,0.82043739]
[1762159989446,1.261,3717.7,3717.6,0.82043739]
[1762159989837,0.00323826,3717.7,3717.6,0.82043739]
[1762159990042,0.00323826,3717.7,3717.6,2.11533739]
[1762159990338,0.00323826,3717.7,3717.6,1.39248318]
[1762159990948,3.2078,3718.6,3718.0,1.2949]
[1762159991250,3.2078,3718.9,3718.5,0.72115988]
[1762159991443,3.2078,3719.1,3718.6,0.72115044]
[1762159991648,3.2078,3719.0,3718.6,0.72115044]
[1762159992039,0.00333373,3718.8,3718.7,1.2171]
[1762159992243,0.00333373,3718.8,3718.7,4.4249]
[1762159992442,0.00333373,3718.8,3718.7,5.38716412]
[1762159992844,3.2078,3719.5,3719.4,1.2171]
[1762159993242,0.6653,3719.4,3719.0,0.72014516]
[1762159993450,0.6653,3719.4,3718.9,0.72014516]
[1762159993849,0.66864682,3719.4,3718.9,0.72014516]
[1762159994343,0.66864682,3719.4,3718.8,0.72014516]
[1762159995252,0.66864682,3719.4,3718.7,3.92794516]
[1762159995844,3.2078,3719.5,3718.7,3.92794516]
[1762159996240,3.2078,3719.5,3718.7,3.2078]
[1762159996446,3.2078,3719.5,3718.7,3.92794516]
[1762159996847,0.6653,3719.4,3718.7,3.2078]
[1762159997258,0.6653,3718.8,3718.6,0.00281176]
[1762159997442,0.6653,3719.4,3718.6,0.00281176]
[1762159997647,0.6653,3719.4,3718.7,3.2078]
[1762159998047,0.00344202,3719.5,3719.4,1.2171]
[1762159998749,0.00344202,3719.5,3719.1,3.2078]
[1762159999160,0.00344202,3719.5,3719.4,1.2171]
[1762159999651,3.8731,3721.2,3719.4,1.44339618]
[1762159999852,3.2078,3721.7,3720.9,1.2171]
[1762160000259,3.2078,3722.2,3721.3,3.2078]
[1762160000446,0.66793658,3721.8,3721.3,3.211027]
[1762160000756,0.00263658,3721.8,3721.3,3.211027]
[1762160001258,1.1793,3721.4,3721.3,0.003227]
[1762160001746,9.1793,3721.4,3721.3,0.003227]
[1762160001950,9.1793,3721.4,3720.1,3.2078]
[1762160002148,3.2078,3721.1,3721.0,1.2171]
[1762160002357,3.2078,3721.6,3720.9,3.2078]
[1762160002755,0.00263658,3721.8,3720.9,3.2078]
[1762160003050,0.00263658,3721.8,3721.3,3.2078]
[1762160003958,3.2078,3721.7,3720.9,3.20988786]
[1762160004558,1.1793,3721.0,3720.9,3.20988786]
[1762160005450,1.1793,3721.0,3720.9,0.00208786]
[1762160006956,9.1793,3721.0,3720.1,3.2078]
[1762160007156,1.1386,3720.3,3720.1,3.2078]
[1762160007955,1.1386,3720.3,3719.7,3.2078]
[1762160008156,1.1386,3720.3,3720.2,0.02230569]
[1762160008553,0.7269,3720.5,3720.2,0.02230569]
[1762160009450,1.1386,3720.3,3720.2,0.02230569]
[1762160009760,4.3464,3720.3,3720.2,0.02230569]
[1762160011057,1.1386,3719.3,3718.6,3.2078]
[1762160011862,3.9347,3719.1,3718.6,3.2078]
[1762160012160,3.93812669,3719.1,3718.6,3.21119808]
[1762160014258,0.73032669,3719.1,3718.6,3.21119808]
[1762160016065,1.1386,3718.7,3718.6,3.21119808]
[1762160016563,0.73032669,3719.1,3718.6,3.21119808]
[1762160016962,0.00342669,3719.1,3718.6,3.21119808]
[1762160017366,0.00342669,3719.1,3718.6,3.92745507]
[1762160017661,0.00342669,3719.1,3719.0,1.1349]
[1762160018660,0.00342669,3719.1,3718.8,0.71625699]
[1762160018964,0.00342669,3719.1,3718.7,0.71625699]
[1762160019362,0.00342669,3719.1,3718.8,0.71625699]
[1762160019563,3.2078,3719.6,3719.0,1.1349]
[1762160019765,3.9347,3720.0,3719.2,0.71625699]
[1762160020360,3.9347,3720.0,3719.3,0.71625699]
[1762160020559,3.9366511,3720.0,3719.3,0.71625699]
[1762160020966,1.1386,3719.3,3719.2,0.71625699]
[1762160021166,1.1386,3719.2,3719.1,3.92405699]
[1762160021370,1.1386,3718.9,3718.7,0.71625699]
[1762160021667,0.7269,3719.4,3718.7,0.71625699]
[1762160021863,3.28775122,3722.3,3718.6,3.21119808]
[1762160021864,0.7091,3721.8,3719.7,3.2078]
[1762160022165,0.7091,3721.8,3719.6,0.48399]
[1762160022166,0.7091,3721.8,3721.1,3.2078]
[1762160022363,1.9353,3721.2,3721.1,3.2078]
[1762160022863,1.93724485,3721.2,3721.1,3.2078]
[1762160025069,0.72884485,3721.2,3721.1,3.2078]
[1762160025959,0.37484485,3721.2,3721.1,3.2078]
[1762160026363,0.7091,3721.8,3721.1,3.2078]
[1762160026565,0.7091,3721.8,3721.7,3.2078]
[1762160026759,1.9086,3721.8,3721.7,3.2078]
[1762160026960,0.7091,3721.8,3721.7,3.2078]
[1762160027465,0.7115599,3721.8,3721.7,3.21053864]
[1762160028168,1.1995,3721.5,3721.4,0.71716828]
[1762160028566,0.7115599,3721.8,3721.2,3.92496828]
[1762160028969,0.7115599,3721.8,3721.7,3.2078]
[1762160029168,1.9110599,3721.8,3721.7,3.21094485]
[1762160029666,0.7004,3721.2,3721.1,3.92496828]
[1762160029871,0.7004,3721.2,3721.1,3.2078]
[1762160030067,0.7115599,3721.8,3721.1,3.2078]
[1762160030871,0.7115599,3721.8,3721.1,3.20974571]
[1762160031267,0.0024599,3721.8,3721.5,3.2078]
[1762160031474,0.0024599,3721.8,3721.7,1.1737]
[1762160031674,0.0024599,3721.8,3721.5,3.2078]
[1762160031877,1.1995,3721.6,3721.3,0.71716828]
[1762160032075,1.1995,3721.6,3721.2,0.71716828]
[1762160032378,1.1995,3721.3,3721.2,0.71716828]
[1762160032672,0.7004,3721.2,3721.1,3.20974571]
[1762160033378,0.0024599,3721.8,3721.1,3.20974571]
[1762160034171,0.0024599,3721.8,3721.5,3.2078]
[1762160034773,0.0024599,3721.8,3721.7,1.1737]
[1762160038381,0.7028599,3721.8,3721.5,3.2078]
[1762160038578,1.1995,3721.6,3721.5,3.2078]
[1762160038779,0.7028599,3721.8,3721.5,3.2078]
[1762160039679,1.1995,3721.6,3721.5,3.2078]
[1762160039881,1.8999,3721.2,3721.1,3.20974571]
[1762160040885,1.8999,3721.2,3721.1,0.00194571]
[1762160044888,1.8999,3721.2,3720.7,3.2078]
[1762160044889,12.2689,3721.2,3720.7,3.2078]
[1762160045081,1.1995,3720.8,3720.7,3.2078]
[1762160045284,1.1995,3720.8,3720.0,0.95777209]
[1762160045285,0.7004,3720.6,3720.2,0.71716828]
[1762160045480,0.7004,3720.6,3720.0,0.95777209]
[1762160045481,0.7004,3720.6,3720.0,0.71716828]
[1762160045686,0.7004,3720.6,3720.3,3.2078]
[1762160045890,10.367,3720.9,3720.3,3.21026086]
[1762160046090,0.7004,3721.2,3720.3,3.92742914]
[1762160046285,10.367,3721.1,3720.3,3.92742914]
[1762160046791,0.7004,3721.2,3720.4,0.71716828]
[1762160047387,0.7004,3721.2,3720.5,0.71716828]
[1762160047588,0.7004,3721.2,3720.7,3.2078]
[1762160048188,3.2078,3721.5,3721.4,1.1737]
[1762160048380,0.7028599,3721.8,3721.1,3.2078]
[1762160048688,0.7028599,3721.8,3721.3,0.71716828]
[1762160049281,0.7028599,3721.8,3721.4,0.71716828]
[1762160050487,1.1995,3721.5,3721.4,0.71716828]
[1762160050994,1.1995,3721.4,3721.3,0.71716828]
[1762160051195,0.7004,3721.2,3721.1,0.71716828]
[1762160051393,1.8999,3721.2,3721.1,0.95777209]
[1762160051589,0.7004,3721.2,3720.9,1.44339618]
[1762160051889,0.7028599,3721.8,3720.9,1.44339618]
[1762160052091,0.7028599,3721.8,3720.3,0.00246086]
[1762160052092,11.0418599,3721.8,3721.4,0.72096287]
[1762160052290,0.22581617,3721.7,3721.4,0.72096287]
[1762160052594,0.22581617,3721.6,3721.4,0.72096287]
[1762160052789,11.0418599,3721.8,3721.4,0.72096287]
[1762160052790,0.22581617,3721.5,3721.4,0.72096287]
[1762160053092,1.44581617,3721.5,3721.4,0.72096287]
[1762160053296,1.22,3721.4,3721.3,0.72096287]
[1762160053596,1.22,3721.3,3721.2,0.72096287]
[1762160053784,1.44581617,3721.3,3721.2,0.72096287]
[1762160054193,1.44581617,3721.3,3721.1,4.16908383]
[1762160054390,2.11571617,3721.2,3721.1,3.2078]
[1762160054891,2.11571617,3721.2,3721.0,0.96128383]
[1762160055094,0.22581617,3721.1,3721.0,0.96128383]
[1762160056192,1.44581617,3721.1,3721.0,0.96128383]
[1762160056594,1.22,3721.0,3720.7,4.65119618]
[1762160056901,0.22581617,3720.9,3720.7,4.65119618]
[1762160057197,0.22581617,3720.8,3720.7,4.16964984]
[1762160057891,0.22581617,3721.1,3720.7,4.16964984]
[1762160058191,0.22581617,3721.0,3720.9,0.72139369]
[1762160058399,1.44581617,3721.0,3720.9,0.72139369]
[1762160061699,1.22,3720.6,3720.5,0.72139369]
[1762160061900,1.44581617,3720.6,3720.5,0.72139369]
[1762160062093,1.8899,3720.5,3720.4,0.72139369]
[1762160062300,1.22,3720.4,3720.3,0.72385455]
[1762160062494,1.44581617,3720.4,3720.3,0.00246086]
[1762160063798,1.22,3719.9,3719.8,0.72139369]
[1762160063998,1.44581617,3719.9,3719.8,0.72139369]
[1762160064795,1.44581617,3719.9,3719.8,0.72453693]
[1762160065195,1.44581617,3719.9,3719.8,0.00314324]
[1762160065395,1.44581617,3719.9,3719.8,0.72453693]
[1762160067903,1.44581617,3719.9,3719.8,0.00314324]
[1762160068599,1.1323,3719.6,3719.5,1.0]
[1762160068807,1.35811617,3719.6,3719.5,1.0]
[1762160069603,1.35811617,3719.6,3719.5,1.00195997]
[1762160070702,0.22581617,3719.6,3719.5,1.00195997]
[1762160070895,5.697,3719.6,3719.5,1.00195997]
[1762160071100,10.41581617,3719.6,3719.5,1.00195997]
[1762160071903,11.54811617,3719.6,3719.5,1.00195997]
[1762160073403,11.54811617,3719.6,3719.5,2.11815997]
[1762160073404,0.22581617,3719.6,3719.5,2.11815997]
[1762160073604,10.174,3719.9,3719.5,2.11815997]
[1762160073806,0.23448305,3719.8,3719.5,2.11815997]
[1762160074106,10.174,3719.9,3719.5,2.11815997]
[1762160074606,1.1323,3719.6,3719.5,1.00195997]
[1762160075008,1.36679377,3719.6,3719.5,1.00195997]
[1762160075607,0.23449377,3719.6,3719.5,1.00195997]
[1762160075902,10.174,3719.9,3719.5,2.11815997]
[1762160076096,0.23444728,3719.8,3719.5,2.11815997]
[1762160076302,10.39844728,3719.7,3719.5,2.11815997]
[1762160076502,10.164,3719.7,3719.5,2.11815997]
[1762160077107,10.164,3719.7,3719.5,1.00195997]
[1762160077604,1.36670046,3719.6,3719.5,1.00195997]
[1762160078007,11.51270046,3719.6,3719.5,1.00195997]
[1762160078200,10.38040046,3719.6,3719.5,1.00195997]
[1762160078402,10.144,3719.7,3719.5,2.11815997]
[1762160078600,10.144,3719.7,3719.6,1.1162]
[1762160078810,10.378379,3719.7,3719.6,1.1162]
[1762160079004,10.378379,3719.7,3719.5,1.00195997]
[1762160079204,10.144,3719.7,3719.5,1.00195997]
[1762160080306,0.6699,3720.0,3719.5,1.00195997]
[1762160080504,10.143,3719.9,3719.6,0.72139369]
[1762160082205,10.143,3719.9,3719.5,1.00195997]
[1762160082406,3.2078,3720.4,3720.1,1.1024]
[1762160082713,0.6699,3721.2,3720.3,1.1024]
[1762160082714,6.9859,3720.5,3720.3,1.1024]
[1762160082914,6.9859,3720.5,3720.3,1.82379369]
[1762160083306,6.9859,3720.5,3720.3,0.72139369]
[1762160083808,3.2078,3720.9,3720.4,1.82379369]
[1762160084013,10.122,3720.7,3720.4,1.82379369]
[1762160084213,10.122,3720.7,3720.5,3.2078]
[1762160084416,10.122,3721.0,3720.6,1.1024]
[1762160084618,1.0641,3720.6,3720.5,3.2078]
[1762160085914,10.122,3721.0,3720.5,3.2078]
[1762160086119,0.2301526,3720.9,3720.5,3.2078]
[1762160086318,0.2301526,3720.8,3720.5,3.92919369]
[1762160086519,1.0641,3720.6,3720.5,3.2078]
[1762160086706,1.2942526,3720.6,3720.5,3.2078]
[1762160087415,0.2301526,3720.6,3720.5,3.2078]
[1762160087615,1.2942526,3720.6,3720.5,3.2078]
[1762160087809,1.2942526,3720.6,3719.9,1.44339618]
[1762160087810,0.5887,3720.5,3719.9,3.2078]
[1762160088006,10.3511526,3720.4,3719.9,4.3102]
[1762160088206,0.2301526,3720.3,3719.9,5.03159369]
[1762160088521,3.2078,3721.0,3720.2,2.06424984]
[1762160088522,10.121,3721.0,3720.2,2.06424984]
[1762160088816,0.23028486,3720.9,3720.3,3.92849125]
[1762160089016,0.23028486,3720.8,3720.4,0.72069125]
[1762160089218,0.5887,3720.5,3720.4,0.72069125]
[1762160089417,0.81898486,3720.5,3720.4,0.72069125]
[1762160089817,0.81898486,3720.5,3720.3,3.92849125]
[1762160090019,0.23028486,3720.4,3720.3,3.2078]
[1762160090220,1.29438486,3720.4,3720.3,3.2078]
[1762160090520,11.41538486,3720.4,3720.3,3.2078]
[1762160095320,11.41550181,3720.4,3720.3,3.2078]
[1762160099823,11.41550181,3720.4,3719.8,2.44339618]
[1762160099824,1.0641,3720.3,3720.1,0.72069125]
[1762160100124,1.29450181,3720.2,3720.1,0.72069125]
[1762160100317,1.29450181,3720.2,3719.9,0.96184984]
[1762160100616,0.5887,3720.0,3719.9,0.96184984]
[1762160101322,0.5887,3720.0,3719.9,2.06447664]
[1762160101513,10.119,3720.2,3719.9,1.1024]
[1762160101716,1.6528,3720.0,3719.9,0.9620945]
[1762160101930,4.02698673,3720.0,3719.8,1.7217096]
[1762160102128,1.29458673,3719.9,3719.8,1.0]
[1762160105725,1.0641,3719.0,3718.9,0.7217096]
[1762160106022,1.0641,3718.7,3718.6,2.9295096]
[1762160106219,1.29458673,3718.7,3718.6,2.9295096]
[1762160106723,1.29778924,3718.7,3718.6,2.93240336]
[1762160107229,1.06730251,3718.7,3718.6,2.93240336]
[1762160108021,1.29769448,3718.7,3718.6,2.93240336]
[1762160110322,1.06730251,3718.7,3718.6,2.93240336]
[1762160111025,1.29746373,3718.7,3718.6,0.00289376]
[1762160113828,0.23016122,3718.7,3718.6,0.00289376]
[1762160114034,1.0035,3718.2,3718.1,3.2078]
[1762160114236,11.1185,3718.2,3718.1,3.2078]
[1762160114535,11.1185,3718.2,3717.7,3.2078]
[1762160114935,11.12166128,3718.2,3717.7,3.21025242]
[1762160115235,0.00316128,3718.2,3718.1,0.9987]
[1762160115428,0.00316128,3718.2,3718.1,4.2065]
[1762160115927,1.00666128,3718.2,3717.7,0.00245242]
[1762160116131,7.063,3718.1,3717.7,0.00245242]
[1762160116634,10.115,3718.0,3717.7,0.00245242]
[1762160117031,1.0035,3717.8,3717.7,1.00115242]
[1762160117237,10.6987,3718.0,3717.7,1.00115242]
[1762160117238,10.115,3718.0,3717.9,0.9987]
[1762160117739,11.7022,3718.0,3717.7,0.00245242]
[1762160117936,1.0035,3717.8,3717.7,0.00245242]
[1762160119331,1.0035,3717.4,3717.3,3.2078]
[1762160119531,1.0035,3717.0,3716.9,3.2078]
[1762160120334,1.0035,3717.0,3716.9,3.20984008]
[1762160120533,0.5837,3717.5,3716.9,1.00074008]
[1762160120736,10.114,3717.4,3717.0,3.7598]
[1762160121038,0.5837,3718.0,3717.3,0.9987]
[1762160121338,10.114,3717.9,3717.3,0.9987]
[1762160121533,1.0035,3717.4,3717.0,3.7598]
[1762160121733,1.0035,3717.1,3717.0,3.2078]
[1762160122242,1.5872,3717.0,3716.9,0.00204008]
[1762160122441,1.0035,3716.7,3716.6,2.4601214]
[1762160122740,0.5837,3716.5,3716.1,4.2065]
[1762160122929,0.5837,3716.5,3716.1,3.2078]
[1762160123243,1.0035,3716.2,3715.7,3.2078]
[1762160123433,10.113,3716.1,3715.7,3.2078]
[1762160123633,10.113,3716.1,3716.0,0.9987]
[1762160124038,10.113,3716.1,3715.7,3.21020224]
[1762160124342,1.0035,3716.1,3715.7,3.21020224]
[1762160124545,5.5175,3716.1,3715.7,3.21020224]
[1762160125545,1.0035,3715.8,3715.7,3.21020224]
[1762160125938,4.514,3716.1,3715.7,3.21020224]
[1762160126138,0.9436,3715.8,3715.7,0.00240224]
[1762160126341,0.6015,3716.0,3715.7,0.00240224]
[1762160126945,4.514,3716.1,3715.7,0.00240224]
[1762160127243,0.9436,3715.8,3715.7,0.00240224]
[1762160129738,1.17027534,3715.8,3715.7,0.00240224]
[1762160129948,0.9436,3714.8,3714.7,0.02692044]
[1762160130244,11.0556,3714.8,3714.7,0.02692044]
[1762160130446,10.112,3714.8,3714.7,0.99302044]
[1762160130848,10.11494287,3714.8,3714.7,0.99578675]
[1762160131141,11.05854287,3714.8,3714.7,0.02968675]
[1762160132142,0.00294287,3714.8,3714.7,4.20358675]
[1762160136547,0.94654287,3714.8,3714.7,3.23748675]
[1762160137655,4.15434287,3714.8,3714.7,0.02968675]
[1762160138053,0.94654287,3714.8,3714.7,0.02968675]
[1762160139150,4.15434287,3714.8,3714.7,0.02968675]
[1762160139342,4.38073238,3714.8,3714.7,0.02968675]
[1762160139947,19.11033238,3714.8,3714.7,0.02968675]
[1762160140143,12.38073238,3714.8,3714.7,0.02968675]
[1762160140342,4.38073238,3714.8,3714.7,0.02968675]
[1762160141756,12.38073238,3714.8,3713.5,3.764]
[1762160141958,3.2078,3714.3,3713.5,3.764]
[1762160142254,13.3178,3714.3,3713.5,3.764]
[1762160142650,13.52239296,3714.3,3713.5,3.76741028]
[1762160143043,13.52239296,3714.3,3713.5,3.21121028]
[1762160143248,13.52239296,3714.3,3713.5,3.75971028]
[1762160144347,0.23245069,3714.2,3713.5,3.75971028]
[1762160144654,13.52239296,3714.3,3713.5,3.75971028]
[1762160144957,0.23245704,3714.2,3713.5,3.75971028]
[1762160145152,13.52239296,3714.3,3713.5,3.75971028]
[1762160145455,0.23254374,3714.2,3713.5,3.75971028]
[1762160145656,0.23254374,3714.1,3713.5,3.75971028]
[1762160145955,13.52239296,3714.3,3713.5,3.75971028]
[1762160146150,0.23257177,3714.2,3713.5,3.75971028]
[1762160146456,0.5232,3714.0,3713.5,3.75971028]
[1762160146947,0.5232,3714.0,3713.5,4.14741028]
[1762160147152,0.5232,3714.0,3713.5,4.69591028]
[1762160147358,0.963,3713.6,3713.5,0.00341028]
[1762160147653,1.19585893,3713.6,3713.5,0.00341028]
[1762160149556,10.33985893,3713.6,3713.5,0.00341028]
[1762160150253,11.30285893,3713.6,3713.5,0.00341028]
[1762160151456,10.33985893,3713.6,3713.5,1.48811028]
[1762160151849,11.30285893,3713.6,3713.5,0.00341028]
[1762160154861,11.30325282,3713.6,3713.5,0.00341028]
[1762160156762,0.5232,3713.5,3712.5,0.5485]
[1762160156960,3.2078,3713.1,3712.5,0.5485]
[1762160157261,10.86045282,3713.0,3712.3,3.2078]
[1762160157462,0.23325282,3712.9,3712.3,3.2078]
[1762160158557,0.963,3712.4,3712.3,3.2078]
[1762160158864,0.23342314,3712.4,3712.3,4.144]
[1762160159663,0.23342314,3712.4,3712.3,3.2078]
[1762160159664,11.29942314,3712.4,3712.3,3.2078]
[1762160160056,11.29942314,3712.4,3711.7,4.1698945]
[1762160160257,0.23342314,3712.3,3712.2,0.9362]
[1762160160457,0.23342314,3712.3,3712.2,4.144]
[1762160161465,0.23337685,3712.3,3712.2,0.9362]
[1762160162967,0.23337685,3712.3,3712.2,0.93920602]
[1762160164165,1.19637685,3712.3,3712.2,0.00300602]
[1762160166366,1.19637685,3712.3,3712.2,0.93920602]
[1762160166671,0.5232,3713.0,3712.2,0.93920602]
[1762160166672,3.2078,3713.9,3713.4,0.9362]
[1762160166871,3.2078,3713.9,3713.5,0.5485]
[1762160167072,0.5232,3714.0,3713.5,0.5485]
[1762160167470,10.099,3714.3,3713.5,0.5485]
[1762160167776,10.099,3714.3,3713.5,1.27170312]
[1762160168767,10.30185154,3714.3,3713.5,1.27170312]
[1762160168974,10.099,3714.3,3713.5,0.5485]
[1762160169169,10.099,3714.3,3713.5,1.27170312]
[1762160170473,10.099,3714.3,3713.6,0.72320312]
[1762160172076,10.099,3714.3,3713.7,0.72320312]
[1762160172375,10.099,3714.3,3713.6,0.72320312]
[1762160172675,10.099,3714.3,3713.5,0.5485]
[1762160172676,10.099,3714.3,3713.5,1.27170312]
[1762160172869,10.099,3714.3,3713.5,0.5485]
[1762160173072,10.099,3714.3,3713.5,0.4198]
[1762160174473,10.099,3714.3,3713.4,3.93100312]
[1762160174678,1.4233,3713.5,3713.1,0.72320312]
[1762160174975,0.943,3713.1,3713.0,3.2078]
[1762160177175,0.943,3712.8,3712.7,0.72320312]
[1762160177378,0.943,3712.6,3712.5,3.2078]
[1762160178773,1.16985736,3712.6,3712.5,3.2078]
[1762160179077,0.22685736,3712.6,3712.5,4.1019]
[1762160179278,0.22685736,3712.6,3712.5,4.6237]
[1762160179473,10.089,3712.9,3712.5,4.6237]
[1762160179672,0.22687111,3712.8,3712.5,4.6237]
[1762160179872,10.089,3712.9,3712.5,4.6237]
[1762160180071,0.22687154,3712.8,3712.5,4.6237]
[1762160180276,10.089,3712.9,3712.8,0.8941]
[1762160180577,0.22687139,3712.9,3712.5,3.7296]
[1762160180769,0.22687139,3712.8,3712.5,3.7296]
[1762160180969,10.088,3713.0,3712.5,3.7296]
[1762160181174,0.22686078,3712.9,3712.5,3.7296]
[1762160181473,10.088,3713.0,3712.9,0.8941]
[1762160181676,10.31486187,3713.0,3712.9,0.8941]
[1762160182476,0.22686187,3713.0,3712.9,0.8941]
[1762160182672,8.072,3713.6,3713.0,0.5218]
[1762160182879,0.22690088,3713.5,3713.4,0.8941]
[1762160183172,8.072,3713.6,3713.5,0.8941]
[1762160183369,8.29885078,3713.6,3713.5,0.8941]
[1762160184378,8.29885078,3713.6,3713.2,3.2078]
[1762160184576,0.22685078,3713.5,3713.2,3.2078]
[1762160184774,8.072,3713.6,3713.2,3.2078]
[1762160184975,0.22678995,3713.5,3713.2,3.2078]
[1762160185175,8.072,3713.6,3713.2,3.2078]
[1762160185376,0.70708712,3713.5,3713.2,3.2078]
[1762160185682,0.4803,3713.5,3713.2,3.2078]
[1762160186183,8.072,3713.6,3713.2,3.2078]
[1762160186481,0.22678294,3713.5,3713.2,3.2078]
[1762160186681,8.072,3713.6,3713.2,3.2078]